fUSD/lending_fUSD_20251224
["ID","MTS","AMOUNT","RATE_DAILY","PERIOD"]
[399682145,1766616641758,-13170.86913199,0.00016589,2]
[399682146,1766616641768,-967.0,0.00016607,2]
[399682147,1766616641778,-823.0,0.00016619,2]
[399682148,1766616641788,-823.0,0.00016619,2]
[399682149,1766616641799,-3292.0,0.00016655,2]
[399682150,1766616641809,-1036.98669577,0.0001666,2]
[399682151,1766616641819,-556.44,0.00016712,2]
[399682152,1766616641830,-544.73,0.00016712,2]
[399682153,1766616641841,-196.59225827,0.00016724,2]
[399682154,1766616641857,-967.0,0.00016753,2]
[399682155,1766616641867,-1008.0,0.000168,2]
[399682156,1766616641878,-967.0,0.00016838,2]
[399682157,1766616641889,-10549.163226,0.00016859,2]
[399682158,1766616641899,-200.0,0.00016864,2]
[399682159,1766616641910,-16018.20443664,0.000169,2]
[399682160,1766616641921,-13170.86913199,0.000169,2]
[399682161,1766616641931,-2755.32009494,0.000169,2]
[399682162,1766616641942,-150.0,0.000169,2]
[399682163,1766616641953,-694.93232339,0.000169,2]
[399682164,1766616641963,-216.55418196,0.000169,2]
[399682165,1766616641974,-380.48344145,0.000169,2]
[399682166,1766616641984,-226.45427209,0.000169,2]
[399682167,1766616641994,-5159.29,0.00016922,2]
[399682168,1766616642004,-23332.38,0.00016922,2]
[399682169,1766616642015,-163.27,0.00016972,2]
[399682170,1766616642024,-502.01719743,0.00016973,2]
[399682171,1766616642035,-174.83400543,0.00016973,2]
[399682172,1766616642045,-164.80244684,0.00016973,2]
[399682173,1766616642055,-501.65480371,0.00016973,2]
[399682174,1766616642065,-500.35332728,0.00016973,2]
[399682175,1766616642075,-500.0,0.00016973,2]
[399682176,1766616642086,-500.0,0.00016973,2]
[399682177,1766616642097,-500.0,0.00016973,2]
[399682178,1766616642107,-500.0,0.00016973,2]
[399682179,1766616642118,-254.14415415,0.00016973,2]
[399682180,1766616642129,-500.0,0.00016973,2]
[399682181,1766616642139,-500.0,0.00016973,2]
[399682182,1766616642150,-500.0,0.00016973,2]
[399682183,1766616642160,-500.0,0.00016973,2]
[399682184,1766616642170,-500.0,0.00016973,2]
[399682185,1766616642181,-162.11626746,0.00016973,2]
[399682186,1766616642192,-500.0,0.00016973,2]
[399682188,1766616642208,-500.0,0.00016973,2]
[399682189,1766616642218,-500.0,0.00016973,2]
[399682190,1766616642230,-537.88170422,0.00016973,2]
[399682191,1766616642240,-500.0,0.00016973,2]
[399682192,1766616642251,-150.0,0.00016973,2]
[399682193,1766616642261,-147990.85714411,0.0001698,2]
[399682194,1766616642273,-153.2941,0.0001698,2]
[399682195,1766616642284,-260.755928,0.0001698,2]
[399682196,1766616642294,-286.60369,0.0001698,2]
[399682197,1766616642305,-500.0,0.00016986,2]
[399682198,1766616642315,-500.0,0.00016986,2]
[399682199,1766616642326,-500.0,0.00016986,2]
[399682200,1766616642336,-500.0,0.00016986,2]
[399682201,1766616642347,-500.0,0.00016986,2]
[399682202,1766616642357,-500.0,0.00016986,2]
[399682203,1766616642368,-574.72487686,0.00016986,2]
[399682204,1766616642379,-229.06,0.00016986,2]
[399682205,1766616642389,-544.73,0.00016986,2]
[399682206,1766616642399,-150.0,0.00016986,2]
[399682207,1766616642410,-150.0,0.00016986,2]
[399682209,1766616642420,-150.0,0.00016986,2]
[399682211,1766616642430,-150.0,0.00016986,2]
[399682213,1766616642440,-177.95989573,0.0001699,2]
[399682214,1766616642450,-500.0,0.00016999,2]
[399682216,1766616642461,-500.0,0.00016999,2]
[399682217,1766616642471,-500.0,0.00016999,2]
[399682218,1766616642481,-500.0,0.00016999,2]
[399682219,1766616642492,-500.0,0.00016999,2]
[399682220,1766616642502,-157.53838756,0.00016999,2]
[399682221,1766616642513,-300.0,0.00016999,2]
[399682222,1766616642523,-300.0,0.00016999,2]
[399682223,1766616642534,-300.0,0.00016999,2]
[399682224,1766616642545,-666.0,0.00016999,2]
[399682225,1766616642555,-300.0,0.00016999,2]
[399682226,1766616642569,-500.0,0.00016999,2]
[399682227,1766616642580,-500.0,0.00016999,2]
[399682228,1766616642590,-500.0,0.00016999,2]
[399682229,1766616642600,-251.74375334,0.00016999,2]
[399682230,1766616642614,-300.0,0.00016999,2]
[399682231,1766616642624,-346.18583744,0.00016999,2]
[399682232,1766616642635,-150.0,0.00016999,2]
[399682233,1766616642646,-150.0,0.00016999,2]
[399682234,1766616642658,-1055695.14407957,0.00017,2]
[399682235,1766616642668,-168789.50980046,0.00017,2]
[399682236,1766616642679,-250.0,0.00017,2]
[399682237,1766616642690,-3706653.52195851,0.00017,2]
[399682238,1766616642719,-4219.49174464,0.00017,2]
[399682240,1766616642935,-856.44542078,0.00017,2]
[399682241,1766616642967,-505.57264526,0.00017,2]
[399682242,1766616642980,-369.70090029,0.00017,2]
[399682243,1766616642992,-372.989602,0.00017,2]
[399682244,1766616643004,-320.80564374,0.00017,2]
[399682245,1766616643019,-34754.69892926,0.00017,2]
[399682246,1766616643029,-390.0,0.00017,2]
[399682247,1766616643039,-240710.24837467,0.00017,2]
[399682248,1766616643050,-2000.0,0.00017,2]
[399682249,1766616643060,-200.0,0.00017,2]
[399682250,1766616643071,-151.0,0.00017,2]
[399682251,1766616643082,-344.62350649,0.00017,2]
[399682252,1766616643093,-213.992262,0.00017,2]
[399682253,1766616643104,-151.0,0.00017,2]
[399682254,1766616643114,-151.0,0.00017,2]
[399682255,1766616643124,-151.0,0.00017,2]
[399682256,1766616643134,-151.0,0.00017,2]
[399682257,1766616643144,-151.0,0.00017,2]
[399682258,1766616643154,-151.0,0.00017,2]
[399682259,1766616643164,-151.0,0.00017,2]
[399682260,1766616643174,-151.0,0.00017,2]
[399682261,1766616643183,-243.679023,0.00017,2]
[399682262,1766616643194,-205.434949,0.00017,2]
[399682263,1766616643204,-152.0,0.00017,2]
[399682264,1766616643214,-1256.0,0.00017,2]
[399682265,1766616643224,-152.0,0.00017,2]
[399682266,1766616643234,-1256.0,0.00017,2]
[399682267,1766616643244,-152.0,0.00017,2]
[399682268,1766616643255,-836.0,0.00017,2]
[399682269,1766616643266,-1256.0,0.00017,2]
[399682270,1766616643276,-152.0,0.00017,2]
[399682271,1766616643287,-836.0,0.00017,2]
[399682272,1766616643296,-152.0,0.00017,2]
[399682273,1766616643306,-1256.0,0.00017,2]
[399682274,1766616643317,-152.0,0.00017,2]
[399682275,1766616643327,-154.0,0.00017,2]
[399682276,1766616643337,-836.0,0.00017,2]
[399682277,1766616643347,-152.0,0.00017,2]
[399682278,1766616643358,-152.0,0.00017,2]
[399682279,1766616643369,-1256.0,0.00017,2]
[399682280,1766616643379,-836.0,0.00017,2]
[399682281,1766616643389,-154.61412107,0.00017,2]
[399682282,1766616643400,-152.0,0.00017,2]
[399682283,1766616643410,-152.0,0.00017,2]
[399682284,1766616643420,-1256.0,0.00017,2]
[399682285,1766616643430,-875.75031902,0.00017,2]
[399682286,1766616643439,-152.0,0.00017,2]
[399682287,1766616643450,-1256.0,0.00017,2]
[399682288,1766616643459,-152.0,0.00017,2]
[399682289,1766616643469,-152.0,0.00017,2]
[399682290,1766616643479,-1256.0,0.00017,2]
[399682291,1766616643490,-1256.0,0.00017,2]
[399682292,1766616643500,-152.0,0.00017,2]
[399682293,1766616643510,-152.0,0.00017,2]
[399682294,1766616643520,-152.0,0.00017,2]
[399682295,1766616643530,-1256.0,0.00017,2]
[399682296,1766616643540,-152.0,0.00017,2]
[399682297,1766616643550,-152.0,0.00017,2]
[399682298,1766616643562,-152.0,0.00017,2]
[399682299,1766616643572,-1000.0,0.00017,2]
[399682300,1766616643584,-1256.0,0.00017,2]
[399682301,1766616643595,-152.0,0.00017,2]
[399682302,1766616643607,-1256.0,0.00017,2]
[399682303,1766616643618,-152.0,0.00017,2]
[399682304,1766616643627,-1256.0,0.00017,2]
[399682305,1766616643637,-152.0,0.00017,2]
[399682306,1766616643650,-152.0,0.00017,2]
[399682307,1766616643661,-500.0,0.00017,2]
[399682308,1766616643671,-604.0,0.00017013,2]
[399682309,1766616643682,-500.0,0.00017028,2]
[399682310,1766616643692,-211.89187846,0.00017055,2]
[399682311,1766616643701,-183.75,0.00017111,2]
[399682312,1766616643711,-298.0,0.00017165,2]
[399682313,1766616643721,-200.0,0.0001717,2]
[399682314,1766616643731,-359.76179104,0.00017187,2]
[399682315,1766616643740,-967.0,0.00017196,2]
[399682316,1766616643749,-967.0,0.00017257,2]
[399682317,1766616643759,-1600.0,0.00017293,2]
[399682318,1766616643769,-380.48344142,0.000173,2]
[399682319,1766616643778,-200.0,0.00017342,2]
[399682320,1766616643788,-375.0,0.00017344,2]
[399682321,1766616643798,-967.0,0.00017356,2]
[399682322,1766616643808,-151.42395307,0.00017376,2]
[399682323,1766616643818,-967.0,0.0001741,2]
[399682324,1766616643828,-217.39,0.00017422,2]
[399682325,1766616643838,-967.0,0.00017425,2]
[399682326,1766616643847,-967.0,0.0001745,2]
[399682327,1766616643858,-166.67,0.00017452,2]
[399682328,1766616643868,-159.39,0.00017472,2]
[399682329,1766616643878,-379.66,0.00017476,2]
[399682330,1766616643892,-200.0,0.00017515,2]
[399682331,1766616643904,-1000.0,0.00017521,2]
[399682332,1766616643914,-853.92874992,0.00017521,2]
[399682333,1766616643924,-1000.0,0.00017521,2]
[399682334,1766616643934,-500.0,0.00017521,2]
[399682335,1766616643945,-500.0,0.00017521,2]
[399682336,1766616643955,-1000.0,0.00017521,2]
[399682337,1766616643965,-1000.0,0.00017521,2]
[399682338,1766616643975,-1000.0,0.00017523,2]
[399682339,1766616643985,-1098.0,0.00017544,2]
[399682340,1766616643995,-1252.0,0.00017597,2]
[399682341,1766616644004,-300.0,0.00017642,2]
[399682342,1766616644014,-380.48344142,0.000177,2]
[399682343,1766616644024,-183.75,0.00017796,2]
[399682344,1766616644034,-500.0,0.00017808,2]
[399682345,1766616644054,-500.0,0.00017835,2]
[399682346,1766616644076,-155.59167587,0.00017863,2]
[399682347,1766616644088,-1500.00387024,0.000179,2]
[399682348,1766616644098,-13684.9,0.00017932,2]
[399682349,1766616644108,-300.0,0.00017972,2]
[399682350,1766616644118,-300.0,0.00017972,2]
[399682351,1766616644127,-300.0,0.00017972,2]
[399682352,1766616644137,-500.0,0.00017973,2]
[399682353,1766616644148,-500.0,0.00017973,2]
[399682354,1766616644158,-500.0,0.00017973,2]
[399682355,1766616644168,-640.00175838,0.00017973,2]
[399682356,1766616644177,-500.22140656,0.00017973,2]
[399682357,1766616644187,-500.67919196,0.00017973,2]
[399682358,1766616644196,-500.0,0.00017973,2]
[399682359,1766616644206,-500.41261549,0.00017973,2]
[399682360,1766616644215,-500.0,0.00017973,2]
[399682361,1766616644225,-500.0,0.00017973,2]
[399682362,1766616644235,-500.0,0.00017973,2]
[399682363,1766616644245,-500.0,0.00017973,2]
[399682364,1766616644255,-500.0,0.00017973,2]
[399682365,1766616644264,-500.0,0.00017973,2]
[399682366,1766616644275,-160.27935937,0.00017973,2]
[399682367,1766616644285,-160.27197192,0.00017973,2]
[399682368,1766616644295,-500.38208314,0.00017973,2]
[399682369,1766616644305,-500.0,0.00017973,2]
[399682370,1766616644315,-500.0,0.00017973,2]
[399682371,1766616644325,-556.28902604,0.00017973,2]
[399682372,1766616644334,-500.0,0.00017973,2]
[399682373,1766616644345,-150.01500017,0.00017973,2]
[399682374,1766616644355,-500.0,0.00017973,2]
[399682375,1766616644365,-500.0,0.00017973,2]
[399682376,1766616644374,-500.0,0.00017973,2]
[399682377,1766616644384,-334.79703865,0.00017973,2]
[399682378,1766616644393,-500.62013738,0.00017973,2]
[399682379,1766616644402,-519.15656558,0.00017973,2]
[399682380,1766616644412,-500.0,0.00017973,2]
[399682381,1766616644421,-500.0,0.00017973,2]
[399682382,1766616644430,-500.42799318,0.00017973,2]
[399682383,1766616644440,-575.447525,0.00017973,2]
[399682384,1766616644450,-500.0,0.00017973,2]
[399682385,1766616644460,-500.0,0.00017973,2]
[399682386,1766616644470,-500.0,0.00017973,2]
[399682387,1766616644480,-150.25848283,0.00017973,2]
[399682388,1766616644490,-500.0,0.00017973,2]
[399682389,1766616644500,-500.36254835,0.00017973,2]
[399682390,1766616644509,-162.47512997,0.00017973,2]
[399682391,1766616644519,-500.0,0.00017973,2]
[399682392,1766616644528,-500.3718357,0.00017973,2]
[399682393,1766616644538,-570.6142812,0.00017973,2]
[399682394,1766616644548,-160.28006419,0.00017973,2]
[399682395,1766616644558,-160.2351428,0.00017973,2]
[399682396,1766616644568,-500.0,0.00017973,2]
[399682397,1766616644579,-640.32887025,0.00017973,2]
[399682398,1766616644588,-500.0,0.00017973,2]
[399682399,1766616644599,-500.0,0.00017973,2]
[399682400,1766616644612,-181.04592189,0.00017973,2]
[399682401,1766616644623,-500.0,0.00017973,2]
[399682402,1766616644633,-500.0,0.00017973,2]
[399682403,1766616644643,-500.0,0.00017973,2]
[399682404,1766616644653,-500.0,0.00017973,2]
[399682405,1766616644663,-500.0,0.00017973,2]
[399682406,1766616644673,-500.0,0.00017973,2]
[399682407,1766616644683,-500.0,0.00017973,2]
[399682408,1766616644693,-500.19289853,0.00017973,2]
[399682409,1766616644703,-500.0,0.00017973,2]
[399682410,1766616644713,-509.43327994,0.00017973,2]
[399682411,1766616644723,-506.49407509,0.00017973,2]
[399682412,1766616644733,-500.0,0.00017973,2]
[399682413,1766616644742,-500.0,0.00017973,2]
[399682414,1766616644753,-500.82117656,0.00017973,2]
[399682415,1766616644763,-500.37592798,0.00017973,2]
[399682416,1766616644773,-500.4712,0.00017973,2]
[399682417,1766616644782,-160.28006364,0.00017973,2]
[399682418,1766616644792,-500.0,0.00017973,2]
[399682419,1766616644802,-207.58860749,0.00017973,2]
[399682420,1766616644812,-500.0,0.00017973,2]
[399682421,1766616644822,-156.62518783,0.00017973,2]
[399682422,1766616644832,-500.0,0.00017973,2]
[399682423,1766616644841,-500.0,0.00017973,2]
[399682424,1766616644851,-500.0,0.00017973,2]
[399682425,1766616644861,-530.33299684,0.00017973,2]
[399682426,1766616644871,-164.90862468,0.00017973,2]
[399682427,1766616644881,-566.59580681,0.00017973,2]
[399682428,1766616644891,-500.0,0.00017973,2]
[399682429,1766616644901,-500.0,0.00017973,2]
[399682430,1766616644911,-300.0,0.00017997,2]
[399682431,1766616644921,-151.0,0.00017998,2]
[399682432,1766616644931,-151.0,0.00017998,2]
[399682433,1766616644942,-275.32291,0.00017998,2]
[399682434,1766616644952,-300.0,0.00017999,2]
[399682435,1766616644962,-671.0702352,0.00017999,2]
[399682436,1766616644972,-300.0,0.00017999,2]
[399682437,1766616644982,-300.0,0.00017999,2]
[399682438,1766616644992,-273629.22019595,0.00018,2]
[399682439,1766616645004,-55188.2813855,0.00018,2]
[399682440,1766616645014,-1186.06717948,0.00018,2]
[399682441,1766616645025,-348300.22525709,0.00018,2]
[399682447,1766616646085,-4632.0,0.00016299,2]
[399682448,1766616646095,-397432.37387599,0.00018,2]
[399682449,1766616646105,-150.0,0.00018,2]
[399682450,1766616646116,-2903.80863836,0.00018,2]
[399682451,1766616646125,-150.0,0.00018,2]
[399682452,1766616646136,-671.20407632,0.00018,2]
[399682453,1766616646145,-150.0,0.00018,2]
[399682454,1766616646155,-18870.63954084,0.00018,2]
[399682455,1766616646164,-5000.0,0.00018,3]
[399682456,1766616646174,-151.0,0.00018,2]
[399682457,1766616646183,-151.0,0.00018,2]
[399682458,1766616646194,-339.47657605,0.00018068,2]
[399682459,1766616646203,-1500.0,0.00018068,2]
[399682460,1766616646213,-1000.0,0.00018068,2]
[399682461,1766616646222,-1087.65011921,0.00018068,2]
[399682462,1766616646231,-1000.0,0.00018082,2]
[399682463,1766616646241,-1773.15601251,0.000181,2]
[399682464,1766616646251,-380.48344142,0.000181,2]
[399682465,1766616646262,-151.42395307,0.00018166,2]
[399682466,1766616646272,-1152.0,0.00018234,2]
[399682467,1766616646281,-1152.0,0.00018234,2]
[399682468,1766616646291,-166.67,0.00018317,2]
[399682469,1766616646300,-200.18296457,0.00018319,2]
[399682470,1766616646310,-4609.0,0.0001832,2]
[399682471,1766616646320,-306.55157077,0.00018355,2]
[399682472,1766616646329,-300.0,0.00018355,2]
[399682473,1766616646339,-300.0,0.00018355,2]
[399682474,1766616646349,-88151.04,0.00018356,2]
[399682475,1766616646359,-1098.0,0.00018467,2]
[399682476,1766616646369,-183.75,0.0001848,2]
[399682477,1766616646379,-380.48344142,0.000185,2]
[399682478,1766616646389,-300.0,0.0001852,2]
[399682479,1766616646398,-300.0,0.0001852,2]
[399682480,1766616646410,-1000.0,0.00018521,2]
[399682481,1766616646419,-1001.55278646,0.00018521,2]
[399682482,1766616646430,-1000.0,0.00018521,2]
[399682483,1766616646439,-1000.0,0.00018521,2]
[399682484,1766616646449,-1001.27464861,0.00018521,2]
[399682485,1766616646459,-1000.0,0.00018521,2]
[399682486,1766616646468,-1001.64987831,0.00018521,2]
[399682487,1766616646478,-500.89276948,0.00018521,2]
[399682488,1766616646488,-1000.0,0.00018521,2]
[399682489,1766616646498,-1000.0,0.00018521,2]
[399682490,1766616646507,-500.586996,0.00018521,2]
[399682491,1766616646517,-1001.67885811,0.00018521,2]
[399682492,1766616646527,-1001.57985553,0.00018521,2]
[399682493,1766616646536,-1082.06225981,0.00018521,2]
[399682494,1766616646545,-1001.50543646,0.00018521,2]
[399682495,1766616646555,-1001.54516283,0.00018521,2]
[399682496,1766616646565,-1001.09853648,0.00018521,2]
[399682497,1766616646574,-533.98774183,0.00018521,2]
[399682498,1766616646584,-1001.62552641,0.00018521,2]
[399682499,1766616646593,-500.91892275,0.00018521,2]
[399682500,1766616646605,-1000.0,0.00018521,2]
[399682501,1766616646618,-1000.0,0.00018521,2]
[399682502,1766616646629,-1000.0,0.00018521,2]
[399682503,1766616646638,-1000.0,0.00018521,2]
[399682504,1766616646648,-1000.0,0.00018521,2]
[399682505,1766616646659,-1000.0,0.00018521,2]
[399682506,1766616646669,-1000.0,0.00018521,2]
[399682507,1766616646679,-1001.1107739,0.00018521,2]
[399682508,1766616646689,-1001.16688708,0.00018521,2]
[399682509,1766616646699,-1000.0,0.00018521,2]
[399682510,1766616646709,-500.33803231,0.00018521,2]
[399682511,1766616646719,-1001.63628178,0.00018521,2]
[399682512,1766616646728,-1000.0,0.00018521,2]
[399682513,1766616646738,-1000.0,0.00018521,2]
[399682514,1766616646747,-1000.0,0.00018521,2]
[399682515,1766616646758,-1000.0,0.00018521,2]
[399682516,1766616646767,-1000.7748224,0.00018521,2]
[399682517,1766616646777,-1001.47129167,0.00018521,2]
[399682518,1766616646786,-1000.0,0.00018521,2]
[399682519,1766616646796,-1000.0,0.00018521,2]
[399682520,1766616646806,-1000.0,0.00018521,2]
[399682521,1766616646816,-1000.0,0.00018521,2]
[399682522,1766616646826,-1000.0,0.00018521,2]
[399682523,1766616646835,-373.07297731,0.00018556,2]
[399682524,1766616646845,-621.78829552,0.00018558,2]
[399682525,1766616646855,-1989.72895904,0.00018616,2]
[399682526,1766616646865,-300.0,0.00018656,2]
[399682527,1766616646874,-1000.0,0.0001876,2]
[399682528,1766616646884,-300.0,0.00018857,2]
[399682529,1766616646893,-1600.0,0.00018866,2]
[399682530,1766616646903,-160.77419797,0.000189,2]
[399682531,1766616646913,-380.48344142,0.000189,2]
[399682532,1766616646923,-300.0,0.00018938,2]
[399682533,1766616646933,-300.0,0.00018938,2]
[399682534,1766616646943,-500.0,0.00018939,2]
[399682535,1766616646952,-500.0,0.00018939,2]
[399682536,1766616646962,-500.0,0.00018939,2]
[399682537,1766616646972,-500.0,0.00018939,2]
[399682538,1766616646981,-500.0,0.00018939,2]
[399682539,1766616646993,-500.0,0.00018939,2]
[399682540,1766616647003,-500.0,0.00018939,2]
[399682541,1766616647013,-500.0,0.00018939,2]
[399682542,1766616647023,-500.0,0.00018939,2]
[399682543,1766616647032,-500.0,0.00018939,2]
[399682544,1766616647042,-500.0,0.00018939,2]
[399682545,1766616647052,-500.0,0.00018939,2]
[399682546,1766616647062,-500.0,0.00018939,2]
[399682547,1766616647073,-500.0,0.00018939,2]
[399682548,1766616647082,-500.0,0.00018939,2]
[399682549,1766616647092,-500.0,0.00018939,2]
[399682550,1766616647102,-500.0,0.00018939,2]
[399682551,1766616647112,-500.0,0.00018939,2]
[399682552,1766616647121,-500.0,0.00018939,2]
[399682553,1766616647131,-500.0,0.00018939,2]
[399682554,1766616647141,-500.0,0.00018939,2]
[399682555,1766616647150,-500.0,0.00018939,2]
[399682556,1766616647160,-500.0,0.00018939,2]
[399682557,1766616647170,-500.0,0.00018939,2]
[399682558,1766616647179,-500.0,0.00018939,2]
[399682559,1766616647189,-500.0,0.00018939,2]
[399682560,1766616647199,-500.0,0.00018939,2]
[399682561,1766616647209,-500.0,0.00018939,2]
[399682562,1766616647219,-500.0,0.00018939,2]
[399682563,1766616647228,-500.0,0.00018939,2]
[399682564,1766616647238,-500.0,0.00018939,2]
[399682565,1766616647247,-500.0,0.00018939,2]
[399682566,1766616647257,-500.0,0.00018939,2]
[399682567,1766616647267,-844.0,0.00018939,2]
[399682568,1766616647277,-500.0,0.00018939,2]
[399682569,1766616647287,-500.0,0.00018939,2]
[399682570,1766616647297,-883.0,0.00018939,2]
[399682571,1766616647307,-500.0,0.00018939,2]
[399682572,1766616647317,-500.0,0.00018939,2]
[399682573,1766616647326,-500.0,0.00018939,2]
[399682574,1766616647336,-500.0,0.00018939,2]
[399682575,1766616647345,-500.0,0.00018939,2]
[399682576,1766616647354,-500.0,0.00018939,2]
[399682577,1766616647365,-500.0,0.00018939,2]
[399682578,1766616647374,-500.0,0.00018939,2]
[399682579,1766616647383,-500.0,0.00018939,2]
[399682580,1766616647393,-500.0,0.00018939,2]
[399682581,1766616647402,-500.0,0.00018939,2]
[399682582,1766616647412,-500.0,0.00018939,2]
[399682583,1766616647421,-500.0,0.00018939,2]
[399682584,1766616647430,-500.0,0.00018939,2]
[399682585,1766616647440,-500.0,0.00018939,2]
[399682586,1766616647450,-647.0,0.00018939,2]
[399682587,1766616647460,-500.0,0.00018939,2]
[399682588,1766616647469,-500.0,0.00018939,2]
[399682589,1766616647479,-500.0,0.00018939,2]
[399682590,1766616647489,-500.0,0.00018939,2]
[399682591,1766616647499,-500.0,0.00018939,2]
[399682592,1766616647509,-500.0,0.00018939,2]
[399682593,1766616647518,-500.0,0.00018939,2]
[399682594,1766616647527,-500.0,0.00018939,2]
[399682595,1766616647537,-500.0,0.00018939,2]
[399682596,1766616647547,-500.0,0.00018939,2]
[399682597,1766616647556,-500.0,0.00018939,2]
[399682598,1766616647566,-500.0,0.00018939,2]
[399682599,1766616647576,-500.0,0.00018939,2]
[399682600,1766616647586,-500.0,0.00018939,2]
[399682601,1766616647595,-500.0,0.00018939,2]
[399682602,1766616647604,-500.0,0.00018939,2]
[399682603,1766616647618,-500.0,0.00018939,2]
[399682604,1766616647628,-500.0,0.00018939,2]
[399682605,1766616647637,-500.0,0.00018939,2]
[399682606,1766616647646,-151.42395307,0.00018956,2]
[399682607,1766616647656,-150.0,0.00018973,2]
[399682608,1766616647666,-163.49113122,0.00018973,2]
[399682609,1766616647675,-150.0,0.00018973,2]
[399682610,1766616647685,-300.67071455,0.0001899,2]
[399682611,1766616647694,-4064.58302824,0.0001899,2]
[399682612,1766616647704,-500.0,0.0001899,2]
[399682613,1766616647714,-500.0,0.0001899,2]
[399682614,1766616647723,-500.0,0.0001899,2]
[399682615,1766616647732,-500.0,0.0001899,2]
[399682616,1766616647741,-500.0,0.0001899,2]
[399682617,1766616647752,-500.0,0.0001899,2]
[399682618,1766616647761,-500.0,0.0001899,2]
[399682619,1766616647771,-500.0,0.0001899,2]
[399682620,1766616647781,-500.0,0.0001899,2]
[399682621,1766616647791,-500.0,0.0001899,2]
[399682622,1766616647801,-500.0,0.0001899,2]
[399682623,1766616647810,-500.0,0.0001899,2]
[399682624,1766616647819,-500.0,0.0001899,2]
[399682625,1766616647829,-500.0,0.0001899,2]
[399682626,1766616647838,-500.0,0.0001899,2]
[399682627,1766616647848,-500.0,0.0001899,2]
[399682628,1766616647857,-500.0,0.0001899,2]
[399682629,1766616647867,-500.0,0.0001899,2]
[399682630,1766616647877,-500.0,0.0001899,2]
[399682631,1766616647886,-500.0,0.0001899,2]
[399682632,1766616647896,-500.0,0.0001899,2]
[399682633,1766616647906,-500.0,0.0001899,2]
[399682634,1766616647916,-500.0,0.0001899,2]
[399682635,1766616647925,-500.0,0.0001899,2]
[399682636,1766616647935,-500.0,0.0001899,2]
[399682637,1766616647945,-500.0,0.0001899,2]
[399682638,1766616647955,-500.0,0.0001899,2]
[399682639,1766616647965,-500.0,0.0001899,2]
[399682640,1766616647975,-500.0,0.0001899,2]
[399682641,1766616647985,-500.0,0.0001899,2]
[399682642,1766616647994,-500.0,0.0001899,2]
[399682643,1766616648004,-500.0,0.0001899,2]
[399682644,1766616648014,-500.0,0.0001899,2]
[399682645,1766616648024,-500.0,0.0001899,2]
[399682646,1766616648033,-500.0,0.0001899,2]
[399682647,1766616648043,-500.0,0.0001899,2]
[399682648,1766616648053,-500.0,0.0001899,2]
[399682649,1766616648062,-500.0,0.0001899,2]
[399682650,1766616648072,-500.0,0.0001899,2]
[399682651,1766616648083,-500.0,0.0001899,2]
[399682652,1766616648093,-500.0,0.0001899,2]
[399682653,1766616648103,-500.0,0.0001899,2]
[399682654,1766616648113,-500.0,0.0001899,2]
[399682655,1766616648123,-500.0,0.0001899,2]